bitfinex/quotes_BTCUSD_20240918
["timestamp","ask_amount","ask_price","bid_price","bid_amount"]
[1726688106647,0.5461,60406.0,60384.0,0.0166433]
[1726688106648,0.01187337,60392.0,60384.0,0.331211]
[1726688106881,0.01187337,60393.0,60378.0,0.43628581]
[1726688107121,0.01187337,60400.0,60386.0,0.023]
[1726688107370,0.01187337,60390.0,60389.0,0.165593]
[1726688107632,0.01752273,60399.0,60386.0,0.023]
[1726688107882,0.02598097,60410.0,60381.0,0.20976465]
[1726688107883,0.01187337,60410.0,60409.0,0.165538]
[1726688108104,0.01187337,60410.0,60393.0,0.023]
[1726688108105,0.01187337,60405.0,60404.0,0.3311]
[1726688108366,0.99289254,60415.0,60405.0,0.165547]
[1726688108367,0.01187337,60406.0,60405.0,0.165547]
[1726688108641,0.01187337,60405.0,60404.0,0.03311]
[1726688108898,0.06,60425.0,60404.0,0.03311]
[1726688108899,0.01187337,60416.0,60405.0,0.023]
[1726688109189,1.10369254,60433.0,60402.0,0.10331044]
[1726688109190,0.01187337,60412.0,60402.0,0.1]
[1726688109396,0.01187337,60420.0,60419.0,0.331021]
[1726688109685,0.01187337,60423.0,60419.0,0.0331021]
[1726688109942,0.99289254,60433.0,60419.0,0.0331021]
[1726688109943,0.01187337,60420.0,60419.0,0.496531]
[1726688110212,0.01187337,60420.0,60415.0,0.1]
[1726688110546,0.01187337,60420.0,60419.0,0.331021]
[1726688110714,0.01187337,60431.0,60427.0,0.165488]
[1726688110979,0.002,60458.0,60426.0,0.330983]
[1726688110980,0.01352137,60440.0,60432.0,0.33095]
[1726688111219,0.01352137,60440.0,60436.0,0.93195481]
[1726688111464,0.01352137,60440.0,60436.0,0.496392]
[1726688111705,0.001648,60440.0,60436.0,0.491392]
[1726688111976,0.001648,60440.0,60436.0,0.92232]
[1726688112220,0.001646,60459.0,60458.0,0.165404]
[1726688112468,0.01351937,60459.0,60458.0,0.0165404]
[1726688112721,0.01187337,60449.0,60430.0,0.43556281]
[1726688112971,0.01187337,60449.0,60426.0,0.03]
[1726688112972,0.01187337,60441.0,60426.0,0.1]
[1726688113213,0.165428,60449.0,60422.0,0.0795]
[1726688113214,0.01187337,60435.0,60423.0,0.023]
[1726688113493,0.01187337,60434.0,60422.0,0.0795]
[1726688113776,0.330842,60452.0,60422.0,0.0795]
[1726688113777,0.01187337,60437.0,60423.0,0.6019259]
[1726688114001,0.01187337,60438.0,60429.0,0.43556281]
[1726688114467,0.01187337,60438.0,60436.0,0.165464]
[1726688114720,0.01187337,60435.0,60425.0,0.123]
[1726688114980,0.03,60463.0,60430.0,0.1]
[1726688115234,0.03,60463.0,60436.0,0.1]
[1726688115235,0.165433,60448.0,60436.0,0.1]
[1726688115474,0.165422,60452.0,60439.0,0.165454]
[1726688115731,0.01762397,60451.0,60437.0,0.0596414]
[1726688115985,0.03,60461.0,60437.0,0.0596414]
[1726688115986,0.01762397,60450.0,60437.0,0.0596414]
[1726688116221,0.165395,60462.0,60443.0,0.123]
[1726688116461,0.165395,60462.0,60444.0,0.05585628]
[1726688116462,0.43556281,60460.0,60444.0,0.05585628]
[1726688116695,0.43556281,60460.0,60438.0,0.330915]
[1726688116696,0.16542,60453.0,60438.0,0.1]
[1726688116966,0.02003196,60459.0,60441.0,0.1]
[1726688116967,0.330814,60457.0,60441.0,0.1]
[1726688117235,0.330814,60457.0,60437.0,0.3905624]
[1726688117236,0.00237881,60456.0,60437.0,0.0596414]
[1726688117489,0.00237881,60456.0,60412.0,0.03]
[1726688117490,0.330889,60444.0,60412.0,0.03]
[1726688117733,0.330947,60433.0,60420.0,0.066314]
[1726688117975,0.330947,60433.0,60410.0,0.0768]
[1726688117976,0.01764909,60432.0,60410.0,0.0768]
[1726688118260,0.01764909,60431.0,60411.0,0.16636349]
[1726688118472,0.00237881,60445.0,60411.0,0.16636349]
[1726688118473,0.01764909,60433.0,60411.0,0.16636349]
[1726688118725,0.330899,60442.0,60412.0,0.04333815]
[1726688118974,0.330942,60434.0,60418.0,0.165511]
[1726688119213,0.01766026,60441.0,60419.0,0.16636306]
[1726688119492,0.0176621,60440.0,60419.0,0.16305367]
[1726688119778,0.1068,60455.0,60439.0,0.165454]
[1726688119779,0.99291719,60449.0,60439.0,0.165454]
[1726688120028,0.21147214,60448.0,60440.0,0.0165454]
[1726688120309,0.16545,60441.0,60440.0,0.0165454]
[1726688120562,0.330875,60446.0,60429.0,0.330963]
[1726688120825,0.001644,60436.0,60427.0,0.1]
[1726688121046,0.330964,60430.0,60412.0,0.04333815]
[1726688121293,0.165492,60426.0,60418.0,0.165512]
[1726688121547,0.1655,60423.0,60416.0,0.165518]
[1726688121785,0.1655,60423.0,60409.0,0.331071]
[1726688121786,0.496614,60409.0,60408.0,0.000822]
[1726688122490,0.165538,60409.0,60408.0,0.000822]
[1726688122731,0.82769,60409.0,60408.0,0.000822]
[1726688122976,0.165538,60409.0,60408.0,0.000822]
[1726688123246,0.01980324,60422.0,60408.0,0.000822]
[1726688123247,0.165497,60424.0,60414.0,0.165523]
[1726688123493,0.165497,60424.0,60408.0,0.000822]
[1726688123494,0.02597247,60432.0,60415.0,0.0165523]
[1726688123767,0.01755798,60423.0,60409.0,0.1]
[1726688124023,0.02597247,60432.0,60411.0,0.023]
[1726688124270,0.165492,60426.0,60417.0,0.165514]
[1726688124492,0.165496,60425.0,60414.0,0.023]
[1726688124722,0.00237881,60435.0,60416.0,0.165517]
[1726688124971,0.331,60423.0,60415.0,0.0454065]
[1726688125227,0.03,60427.0,60400.0,0.331121]
[1726688125471,0.0199869,60426.0,60403.0,0.429404]
[1726688125718,0.165538,60409.0,60399.0,0.331127]
[1726688125959,0.82769,60409.0,60393.0,0.331163]
[1726688126206,0.496614,60409.0,60396.0,0.331143]
[1726688126450,0.13,60429.0,60408.0,0.3319]
[1726688126694,0.99291719,60421.0,60409.0,0.03319]
[1726688126942,0.165515,60418.0,60411.0,0.165532]
[1726688127193,0.11753604,60428.0,60409.0,0.03319]
[1726688127194,0.01753604,60417.0,60409.0,0.03319]
[1726688127417,0.165535,60410.0,60409.0,0.03319]
[1726688127657,0.03,60429.0,60408.0,0.000822]
[1726688127884,0.02597273,60421.0,60408.0,0.000822]
[1726688128122,0.02597273,60421.0,60409.0,0.00331032]
[1726688128362,0.02597273,60421.0,60408.0,0.000822]
[1726688128363,0.496614,60409.0,60408.0,0.000822]
[1726688128597,0.84522049,60409.0,60408.0,0.000822]
[1726688129083,1.17629649,60409.0,60408.0,0.000822]
[1726688129654,1.60737249,60409.0,60408.0,0.000822]
[1726688129922,1.17629649,60409.0,60408.0,0.000822]
[1726688130168,1.17829649,60409.0,60408.0,0.000822]
[1726688130415,1.17829649,60409.0,60380.0,0.000824]
[1726688130416,0.496803,60386.0,60380.0,0.000824]
[1726688130696,0.828005,60386.0,60380.0,0.000824]
[1726688130918,0.84554581,60386.0,60380.0,0.000824]
[1726688131157,0.01753944,60386.0,60380.0,0.000824]
[1726688131403,0.828005,60386.0,60380.0,0.000824]
[1726688131633,1.159207,60386.0,60380.0,0.000824]
[1726688131881,0.18313856,60386.0,60380.0,0.000824]
[1726688132116,0.496803,60386.0,60380.0,0.000824]
[1726688132350,0.02598601,60394.0,60384.0,0.165605]
[1726688132600,0.01756417,60393.0,60386.0,0.0166429]
[1726688132844,0.331142,60397.0,60386.0,0.02213962]
[1726688133076,0.02598357,60403.0,60386.0,0.00549672]
[1726688133335,0.01757765,60396.0,60380.0,0.000824]
[1726688133568,0.02598357,60403.0,60387.0,0.00548938]
[1726688133569,0.165573,60397.0,60387.0,0.00548938]
[1726688133811,0.02598357,60403.0,60390.0,0.331177]
[1726688133812,0.331122,60401.0,60390.0,0.331177]
[1726688134053,0.18312634,60400.0,60386.0,0.331197]
[1726688134298,0.330993,60425.0,60393.0,0.023]
[1726688134576,0.33104,60416.0,60394.0,0.00331091]
[1726688134780,0.99353375,60419.0,60395.0,0.023]
[1726688135026,0.165527,60413.0,60408.0,0.165539]
[1726688135279,0.165545,60407.0,60402.0,0.165555]
[1726688135513,0.99353375,60419.0,60396.0,0.04616011]
[1726688135514,0.43556281,60419.0,60397.0,0.0263108]
[1726688135764,0.01757837,60418.0,60403.0,0.00546728]
[1726688136037,0.331013,60421.0,60399.0,0.023]
[1726688136273,0.01757552,60425.0,60405.0,0.123]
[1726688136503,0.43556281,60438.0,60407.0,0.123]
[1726688136504,0.330952,60432.0,60407.0,0.123]
[1726688136754,0.16549,60427.0,60409.0,0.123]
[1726688136997,0.165493,60426.0,60418.0,0.331021]
[1726688137196,0.330971,60429.0,60420.0,0.165507]
[1726688137466,0.01757322,60428.0,60415.0,0.331039]
[1726688137738,0.01757509,60431.0,60421.0,0.00584397]
[1726688137974,0.01757509,60431.0,60415.0,0.0925]
[1726688137975,0.01757509,60431.0,60430.0,0.519441]
[1726688138214,0.01757509,60431.0,60430.0,1.01345567]
[1726688138449,0.01757509,60431.0,60430.0,1.45022484]
[1726688139163,0.01757509,60431.0,60430.0,1.48022484]
[1726688139405,0.01757509,60431.0,60430.0,1.729754]
[1726688139668,0.001644,60436.0,60435.0,1.158269]
[1726688139929,0.001644,60436.0,60435.0,1.44432267]
[1726688140173,0.001644,60436.0,60435.0,1.45060114]
[1726688140429,0.001644,60436.0,60435.0,1.28754747]
[1726688140693,0.001644,60436.0,60435.0,1.08457858]
[1726688140951,0.001644,60436.0,60435.0,1.27763225]
[1726688141228,0.24819849,60453.0,60436.0,0.123]
[1726688141459,0.00237881,60452.0,60436.0,0.1]
[1726688141703,0.330847,60451.0,60437.0,0.00624805]
[1726688141944,0.00237881,60452.0,60437.0,0.00624805]
[1726688141945,0.165445,60443.0,60437.0,0.00624805]
[1726688142228,0.00237881,60452.0,60418.0,0.1]
[1726688142229,0.330848,60451.0,60424.0,0.03]
[1726688142429,0.102,60458.0,60423.0,0.00330933]
[1726688142430,0.330874,60446.0,60426.0,0.1]
[1726688142671,0.330879,60445.0,60427.0,0.00995063]
[1726688142912,0.330881,60445.0,60427.0,0.00995063]
[1726688143195,0.12596168,60452.0,60427.0,0.00664156]
[1726688143435,0.1,60449.0,60428.0,0.00330928]
[1726688143668,0.330847,60451.0,60428.0,0.16636295]
[1726688143907,0.165425,60451.0,60429.0,0.02188542]
[1726688144148,0.99265436,60453.0,60437.0,0.165459]
[1726688144409,0.99265436,60453.0,60438.0,0.0165459]
[1726688144410,0.330879,60445.0,60438.0,0.0165459]
[1726688144671,0.165441,60445.0,60441.0,0.16545]
[1726688144966,0.165438,60446.0,60429.0,0.18493909]
[1726688145234,0.165438,60446.0,60430.0,0.02074304]
[1726688145235,0.00237881,60446.0,60430.0,0.02074304]
[1726688145494,0.330919,60438.0,60431.0,0.165475]
[1726688145757,0.330912,60439.0,60425.0,0.35347926]
[1726688146002,0.43556281,60448.0,60425.0,0.35347926]
[1726688146003,0.165449,60442.0,60432.0,0.00996235]
[1726688146244,0.43556281,60448.0,60425.0,0.02580059]
[1726688146245,0.165437,60446.0,60441.0,0.165449]
[1726688146479,0.99265436,60447.0,60434.0,0.330937]
[1726688146747,0.002,60452.0,60442.0,0.00996235]
[1726688147026,0.0032652,60453.0,60435.0,0.03640303]
[1726688147300,0.0032652,60453.0,60436.0,0.330923]
[1726688147301,0.165446,60443.0,60436.0,0.330923]
[1726688147560,0.330861,60449.0,60436.0,0.330923]
[1726688147561,0.43556281,60449.0,60436.0,0.01003231]
[1726688147801,0.165457,60439.0,60436.0,0.01003231]
[1726688148031,0.165468,60435.0,60430.0,0.165478]
[1726688148281,0.330892,60443.0,60427.0,0.330975]
[1726688148538,0.330913,60439.0,60433.0,0.165471]
[1726688148778,0.02596114,60450.0,60434.0,0.0165471]
[1726688149034,0.99265436,60449.0,60437.0,0.16546]
[1726688149290,0.99265436,60449.0,60423.0,0.430998]
[1726688149291,0.330912,60440.0,60423.0,0.1]
[1726688149553,0.00237881,60439.0,60426.0,0.33098]
[1726688149788,0.330967,60429.0,60419.0,0.331016]
[1726688150084,0.330963,60430.0,60419.0,0.165509]
[1726688150320,0.330963,60430.0,60417.0,0.0932]
[1726688150321,0.330948,60433.0,60418.0,0.00330989]
[1726688150582,0.165478,60431.0,60421.0,0.33101]
[1726688150819,0.35687553,60440.0,60419.0,0.00965099]
[1726688150820,0.02596653,60440.0,60424.0,0.165495]
[1726688151083,0.02596653,60440.0,60419.0,0.00965099]
[1726688151084,0.330941,60434.0,60428.0,0.165485]
[1726688151338,0.02596653,60440.0,60429.0,0.0165485]
[1726688151339,0.330935,60435.0,60429.0,0.0165485]
[1726688151588,0.330935,60435.0,60419.0,0.00965099]
[1726688151589,0.165504,60422.0,60419.0,0.00965099]
[1726688151863,0.330951,60432.0,60420.0,0.331011]
[1726688152129,0.330951,60432.0,60421.0,0.165503]
[1726688152130,0.165492,60426.0,60421.0,0.165503]
[1726688152459,0.165486,60428.0,60424.0,0.165495]
[1726688152674,0.165483,60429.0,60425.0,0.165492]
[1726688152901,0.02596653,60440.0,60419.0,0.00965099]
[1726688152902,0.330929,60436.0,60427.0,0.330974]
[1726688153157,0.165483,60429.0,60426.0,0.0165492]
[1726688153410,0.496581,60413.0,60412.0,0.01024924]
[1726688153905,0.496581,60413.0,60388.0,0.0040549]
[1726688153906,1.158766,60409.0,60388.0,0.0040549]
[1726688154151,1.53570258,60409.0,60388.0,0.0040549]
[1726688154393,1.53770258,60409.0,60388.0,0.0040549]
[1726688154659,0.827965,60389.0,60388.0,0.0040549]
[1726688154902,0.827965,60389.0,60386.0,0.1]
[1726688154903,1.019992,60387.0,60386.0,0.1]
[1726688155131,1.72824658,60387.0,60386.0,0.1]
[1726688156567,1.33504958,60387.0,60386.0,0.1]
[1726688156800,1.33704958,60387.0,60386.0,0.1]
[1726688157066,1.33715852,60387.0,60386.0,0.1]
[1726688157330,1.16918586,60387.0,60386.0,0.1]
[1726688157560,0.18325887,60387.0,60386.0,0.1100824]
[1726688157795,0.5227832,60387.0,60386.0,0.1100824]
[1726688158024,0.5227832,60387.0,60386.0,0.11829069]
[1726688158025,0.0259882,60387.0,60386.0,0.11829069]
[1726688158263,0.496795,60387.0,60386.0,0.1100824]
[1726688158537,0.165598,60387.0,60386.0,0.11868043]
[1726688158802,0.827992,60387.0,60386.0,0.10859803]
[1726688159055,1.27692478,60387.0,60386.0,0.10859803]
[1726688159287,1.30528417,60387.0,60386.0,0.1]
[1726688159535,0.84572778,60387.0,60386.0,0.1100824]
[1726688159770,0.496795,60387.0,60386.0,0.1100824]
[1726688160015,0.827992,60387.0,60386.0,0.1100824]
[1726688160272,1.27692888,60387.0,60386.0,0.10881606]
[1726688160500,1.63812588,60387.0,60386.0,0.1]
[1726688160736,1.682386,60387.0,60386.0,0.1]
[1726688160974,1.72849953,60387.0,60386.0,0.1]
[1726688161226,1.69249052,60387.0,60386.0,0.1]
[1726688161469,1.23129352,60387.0,60386.0,0.1100824]
[1726688161710,1.23129352,60387.0,60386.0,0.1]
[1726688161711,0.90009652,60387.0,60386.0,0.1]
[1726688161945,0.02599099,60387.0,60386.0,0.1]
[1726688162179,0.19158899,60387.0,60386.0,0.1]
[1726688162412,0.19158899,60387.0,60386.0,0.1088684]
[1726688162413,0.04380018,60387.0,60386.0,0.1088684]
[1726688162653,0.02599099,60387.0,60386.0,0.1]
[1726688162941,0.02599099,60387.0,60386.0,0.1088684]
[1726688162942,0.52278599,60387.0,60386.0,0.1088684]
[1726688163184,0.87179924,60387.0,60386.0,0.1088684]
[1726688163438,0.827992,60387.0,60386.0,0.1]
[1726688164186,0.165598,60387.0,60386.0,0.1]
[1726688164412,0.496795,60387.0,60386.0,0.1]
[1726688164643,0.496795,60387.0,60386.0,0.11900396]
[1726688164876,0.496795,60387.0,60386.0,0.1]
[1726688165112,0.165598,60387.0,60386.0,0.10892156]
[1726688165347,1.159189,60387.0,60386.0,0.10892156]
[1726688165564,1.17693614,60387.0,60386.0,0.10892156]
[1726688165817,1.64013314,60387.0,60386.0,0.1]
[1726688166054,1.6685279,60387.0,60386.0,0.1]
[1726688166275,1.7285279,60387.0,60386.0,0.1]
[1726688166520,1.30515742,60387.0,60386.0,0.1]
[1726688166777,0.54276342,60387.0,60386.0,0.1100824]
[1726688167011,0.02598828,60387.0,60386.0,0.1100824]
[1726688167242,0.02598828,60387.0,60386.0,0.2756834]
[1726688167477,0.02598828,60387.0,60386.0,0.94705803]
[1726688167718,0.165583,60393.0,60386.0,0.45025503]
[1726688169350,0.331173,60392.0,60387.0,0.00887584]
[1726688169587,0.02598441,60402.0,60387.0,0.01218757]
[1726688169832,0.1,60413.0,60387.0,0.00887584]
[1726688169833,0.165569,60398.0,60387.0,0.00887584]
[1726688170107,0.165555,60403.0,60387.0,0.00887584]
[1726688170338,0.02598191,60410.0,60405.0,0.331096]
[1726688170569,0.03,60424.0,60392.0,0.023]
[1726688170570,0.16553,60412.0,60399.0,0.079]
[1726688170809,0.165513,60418.0,60413.0,0.165526]
[1726688171046,0.43556281,60427.0,60400.0,0.331124]
[1726688171047,0.03,60430.0,60414.0,0.0165526]
[1726688171265,0.165517,60417.0,60414.0,0.00878263]
[1726688171521,0.02597418,60428.0,60410.0,0.00331042]
[1726688171753,0.165519,60416.0,60415.0,0.00867172]
[1726688171988,0.331005,60422.0,60412.0,0.165528]
[1726688172244,0.331038,60416.0,60415.0,0.00867172]
[1726688172489,0.16553,60412.0,60405.0,0.331093]
[1726688172737,0.00237881,60418.0,60404.0,0.0972]
[1726688172982,0.331054,60413.0,60406.0,0.00867172]
[1726688173214,0.165537,60410.0,60407.0,0.01058717]
[1726688173443,0.165537,60410.0,60407.0,0.01905076]
[1726688173444,0.16554,60408.0,60407.0,0.01905076]
[1726688173711,0.331007,60422.0,60407.0,0.01058717]
[1726688173958,0.032,60438.0,60407.0,0.01905076]
[1726688173959,0.99347617,60419.0,60407.0,0.01905076]
[1726688174320,0.496614,60409.0,60408.0,0.01162508]
[1726688174474,0.331057,60413.0,60404.0,0.0972]
[1726688174475,0.165549,60405.0,60404.0,0.0972]
[1726688174716,0.165549,60405.0,60389.0,0.0098921]
[1726688174717,0.00237881,60412.0,60390.0,0.1]
[1726688174944,0.00237881,60412.0,60389.0,0.1788]
[1726688174945,0.165549,60405.0,60404.0,0.008464]
[1726688175205,0.03,60422.0,60400.0,0.331122]
[1726688175451,0.99347617,60414.0,60401.0,0.0662269]
[1726688175711,0.01738603,60413.0,60402.0,0.00331112]
[1726688175941,0.0040549,60434.0,60404.0,0.0932]
[1726688176157,1.42903898,60430.0,60414.0,0.165523]
[1726688176390,0.0040549,60434.0,60405.0,0.023]
[1726688176391,0.0173024,60429.0,60415.0,0.331042]
[1726688176626,0.0173024,60429.0,60415.0,0.0331042]
[1726688176627,0.43556281,60424.0,60415.0,0.0331042]
[1726688176872,0.331049,60414.0,60404.0,0.0932]
[1726688177131,0.01730014,60423.0,60404.0,0.0932]
[1726688177392,0.03,60428.0,60395.0,0.00989279]
[1726688177393,0.04909541,60453.0,60434.0,0.03]
[1726688177629,0.0057009,60453.0,60448.0,0.03]
[1726688177882,0.0057009,60453.0,60452.0,0.52626]
[1726688178108,0.0057009,60453.0,60452.0,0.8571]
[1726688178336,0.0057009,60453.0,60452.0,1.18794]
[1726688178555,0.0057009,60453.0,60452.0,0.975894]
[1726688178777,0.0057009,60453.0,60452.0,0.148794]
[1726688179023,0.0057009,60453.0,60452.0,0.8571]
[1726688179252,0.0057009,60453.0,60451.0,0.165422]
[1726688179526,0.0057009,60453.0,60452.0,0.03]
[1726688179805,0.0057009,60453.0,60451.0,0.03]
[1726688180275,0.0057009,60453.0,60432.0,0.0906]
[1726688180276,0.0057009,60453.0,60443.0,0.03]
[1726688180505,0.0057009,60453.0,60438.0,0.03]
[1726688180506,0.330863,60448.0,60438.0,0.03]
[1726688180743,0.16544,60445.0,60438.0,0.03]
[1726688180993,0.02595871,60451.0,60449.0,0.165426]
[1726688181235,0.02595871,60451.0,60450.0,0.0165426]
[1726688181455,0.0057009,60453.0,60446.0,0.03]
[1726688181698,0.0057009,60453.0,60442.0,0.43556281]
[1726688181699,0.0057009,60453.0,60440.0,0.03]
[1726688181938,0.330847,60451.0,60440.0,0.03]
[1726688182200,0.165439,60446.0,60436.0,0.165463]
[1726688182432,0.165449,60442.0,60433.0,0.0330949]
[1726688182672,0.165458,60438.0,60437.0,0.00822769]
[1726688182888,0.00237881,60441.0,60433.0,0.0330949]
[1726688182889,0.00237881,60441.0,60433.0,0.03]
[1726688183118,0.00237881,60441.0,60421.0,0.331009]
[1726688183119,0.00237881,60441.0,60426.0,0.16549]
[1726688183376,0.165467,60435.0,60434.0,0.00800368]
[1726688183606,0.165492,60426.0,60419.0,0.03]
[1726688183821,0.165492,60426.0,60415.0,0.43556281]
[1726688183822,0.4688,60439.0,60424.0,0.03]
[1726688184045,0.10237881,60438.0,60424.0,0.03]
[1726688184268,0.330935,60435.0,60425.0,0.03690157]
[1726688184495,0.002,60442.0,60425.0,0.03690157]
[1726688184496,0.330891,60443.0,60432.0,0.195473]
[1726688184722,0.4688,60447.0,60434.0,0.43556281]
[1726688184968,0.4688,60447.0,60435.0,0.07965178]
[1726688184969,0.00237881,60446.0,60435.0,0.07965178]
[1726688185197,0.330939,60434.0,60428.0,0.03]
[1726688185423,0.03,60444.0,60405.0,0.0424323]
[1726688185424,0.33096,60431.0,60424.0,0.03]
[1726688185676,0.33096,60431.0,60417.0,0.340569]
[1726688185677,0.165465,60436.0,60431.0,0.03]
[1726688185920,0.001644,60435.0,60432.0,0.02034877]
[1726688186170,0.001644,60435.0,60434.0,0.03]
[1726688186845,0.001644,60435.0,60434.0,0.195469]
[1726688187090,0.001644,60435.0,60434.0,0.20362333]
[1726688187326,0.001644,60435.0,60434.0,0.22602054]
[1726688187552,0.001644,60435.0,60434.0,0.55695954]
[1726688187803,0.4745009,60453.0,60434.0,0.55695954]
[1726688187804,0.0057009,60453.0,60452.0,0.8571]
[1726688188043,0.0057009,60453.0,60452.0,0.63098281]
[1726688188261,0.0057009,60453.0,60452.0,1.36389288]
[1726688188558,0.0057009,60453.0,60452.0,0.70221288]
[1726688188782,0.0057009,60453.0,60452.0,1.03305288]
[1726688189459,0.0057009,60453.0,60452.0,0.10123007]
[1726688189682,0.0057009,60453.0,60452.0,0.00813179]
[1726688189930,0.0057009,60453.0,60442.0,0.03]
[1726688190166,0.0057009,60453.0,60434.0,0.02239721]
[1726688190167,0.330858,60449.0,60443.0,0.03]
[1726688190393,0.01994043,60452.0,60443.0,0.03791135]
[1726688190602,0.0057009,60453.0,60443.0,0.00791135]
[1726688190603,0.165442,60444.0,60443.0,0.00791135]
[1726688190852,0.165467,60435.0,60434.0,0.02239721]
[1726688191085,0.165513,60418.0,60417.0,0.00954]
[1726688191317,0.165513,60418.0,60407.0,0.331084]
[1726688191318,0.165516,60417.0,60416.0,0.03]
[1726688191536,0.165495,60425.0,60419.0,0.165509]
[1726688191767,0.00237881,60424.0,60417.0,0.165516]
[1726688191985,0.00237881,60425.0,60420.0,0.00791135]
[1726688192240,0.02596974,60431.0,60419.0,0.0299]
[1726688192458,0.496507,60422.0,60421.0,0.00791135]
[1726688192679,0.27409844,60431.0,60410.0,0.0299]
[1726688192680,0.331026,60419.0,60410.0,0.0299]
[1726688192932,0.00237881,60418.0,60408.0,0.0299]
[1726688193154,0.49659,60412.0,60411.0,0.00791135]
[1726688193416,0.13,60429.0,60401.0,0.16638]
[1726688193417,0.03,60420.0,60401.0,0.000822]
[1726688193644,0.496671,60402.0,60401.0,0.000822]
[1726688193863,0.165557,60402.0,60401.0,0.000822]
[1726688194095,0.827785,60402.0,60401.0,0.000822]
[1726688194319,0.331095,60406.0,60401.0,0.000822]
[1726688194550,0.496671,60402.0,60401.0,0.000822]
[1726688194797,0.827785,60402.0,60401.0,0.000822]
[1726688195283,0.165557,60402.0,60401.0,0.000822]
[1726688195526,0.03,60420.0,60401.0,0.030722]
[1726688195773,0.1095,60422.0,60401.0,0.030722]
[1726688195774,0.165549,60405.0,60401.0,0.030722]
[1726688195990,0.496671,60402.0,60401.0,0.000822]
[1726688196485,1.158899,60402.0,60401.0,0.000822]
[1726688196970,1.592013,60402.0,60401.0,0.000822]
[1726688197447,1.592013,60402.0,60388.0,0.0040549]
[1726688197448,1.159151,60389.0,60388.0,0.0040549]
[1726688197684,1.159151,60389.0,60386.0,0.09369956]
[1726688197685,0.827992,60387.0,60386.0,0.09369956]
[1726688197904,0.827992,60387.0,60386.0,0.10315192]
[1726688197905,0.496795,60387.0,60386.0,0.10315192]
[1726688198138,0.1,60401.0,60386.0,0.10315192]
[1726688198363,0.496771,60390.0,60389.0,0.0299]
[1726688198620,0.331164,60393.0,60386.0,0.13305192]
[1726688198853,0.13,60401.0,60386.0,0.10315192]
[1726688198854,0.496795,60387.0,60386.0,0.10315192]
[1726688199109,0.496795,60387.0,60386.0,0.09369956]
[1726688199347,1.159189,60387.0,60386.0,0.09369956]
[1726688199564,0.827992,60387.0,60386.0,0.09369956]
[1726688200256,0.496795,60387.0,60386.0,0.09369956]
[1726688200506,0.51435375,60387.0,60386.0,0.09369956]
[1726688200744,0.51435375,60387.0,60386.0,0.08345116]
[1726688200745,0.84555075,60387.0,60386.0,0.08345116]
[1726688201199,1.17674775,60387.0,60386.0,0.08345116]
[1726688201461,0.84555075,60387.0,60386.0,0.08345116]
[1726688201681,1.17674775,60387.0,60386.0,0.08345116]
[1726688202131,0.928005,60386.0,60385.0,0.000824]
[1726688202407,0.930005,60386.0,60385.0,0.000824]
[1726688202636,1.590409,60386.0,60385.0,0.000824]
[1726688202915,1.159207,60386.0,60385.0,0.000824]
[1726688203154,0.496803,60386.0,60385.0,0.000824]
[1726688203372,0.165601,60386.0,60385.0,0.000824]
[1726688203820,0.496803,60386.0,60385.0,0.000824]
[1726688204306,0.828005,60386.0,60385.0,0.000824]
[1726688206384,0.496803,60386.0,60385.0,0.000824]
[1726688206841,0.331174,60392.0,60389.0,0.0299]
[1726688207088,0.331106,60404.0,60385.0,0.000824]
[1726688207089,0.496803,60386.0,60385.0,0.000824]
[1726688207354,0.5227888,60386.0,60385.0,0.000824]
[1726688207595,0.496803,60386.0,60385.0,0.000824]
[1726688208043,0.828005,60386.0,60385.0,0.000824]
[1726688208301,0.331137,60398.0,60386.0,0.0299]
[1726688208560,0.24839989,60397.0,60393.0,0.0299]
[1726688208805,0.24839989,60397.0,60385.0,0.000824]
[1726688208806,0.165584,60393.0,60391.0,0.0299]
[1726688209060,0.496737,60394.0,60393.0,0.0299]
[1726688209271,0.496737,60394.0,60387.0,0.0299]
[1726688209272,0.496786,60388.0,60387.0,0.0299]
[1726688209514,0.032,60407.0,60387.0,0.0299]
[1726688209748,1.02340215,60411.0,60387.0,0.0299]
[1726688209749,0.165565,60400.0,60397.0,0.0299]
[1726688209979,0.165561,60401.0,60397.0,0.195469]
[1726688210236,0.165563,60400.0,60398.0,0.0526619]
[1726688210469,0.99340215,60408.0,60392.0,0.0299]
[1726688210686,0.99340215,60408.0,60393.0,0.0299]
[1726688210687,0.00237881,60408.0,60393.0,0.0299]
[1726688210926,0.496737,60394.0,60393.0,0.049449]
[1726688211189,0.331142,60397.0,60393.0,0.0299]
[1726688211446,0.02598007,60410.0,60402.0,0.0299]
[1726688211447,0.165549,60405.0,60402.0,0.0299]
[1726688211692,0.02598007,60410.0,60402.0,0.0299]
[1726688211693,0.02598007,60410.0,60404.0,0.0299]
[1726688211908,0.331013,60421.0,60395.0,0.0299]
[1726688211909,0.331128,60400.0,60395.0,0.0299]
[1726688212142,0.331128,60400.0,60389.0,0.33118]
[1726688212143,0.331136,60398.0,60397.0,0.0299]
[1726688212370,0.496704,60398.0,60397.0,0.0299]
[1726688212652,0.165568,60398.0,60397.0,0.0299]
[1726688212891,0.496704,60398.0,60397.0,0.0195478]
[1726688213143,0.102,60405.0,60387.0,0.0299]
[1726688213409,0.0098054,60398.0,60385.0,0.000824]
[1726688213647,0.165601,60386.0,60385.0,0.030724]
[1726688214152,0.02598034,60401.0,60391.0,0.0299]
[1726688214409,0.496753,60392.0,60391.0,0.0299]
[1726688214711,0.02598034,60401.0,60391.0,0.0299]
[1726688214952,0.99340215,60397.0,60385.0,0.000824]
[1726688215199,0.10992767,60405.0,60385.0,0.000824]
[1726688215200,0.496803,60386.0,60385.0,0.000824]
[1726688215450,1.159207,60386.0,60385.0,0.000824]
[1726688215676,1.161207,60386.0,60385.0,0.000824]
[1726688215899,2.05797181,60386.0,60385.0,0.000824]